[Event "*** Titled Tuesday Blitz"]
[Site "Chess.com"]
[Date "2020.04.28"]
[Round "6"]
[White "LuckSlayeer"]
[Black "Shield12"]
[Result "1-0"]
[WhiteElo "2532"]
[BlackElo "2822"]
[TimeControl "180+1"]
[EndTime "11:08:33 PDT"]
[Termination "LuckSlayeer won by resignation"]

1. e4 {[%clk 0:03:00.9]} 1... c5 {[%clk 0:02:58.7]} 2. Nf3 {[%clk 0:03:00.2]}
2... Nc6 {[%clk 0:02:59.1]} 3. d4 {[%clk 0:03:00.6]} 3... cxd4 {[%clk 0:03:00]}
4. Nxd4 {[%clk 0:03:01.3]} 4... Nf6 {[%clk 0:03:00.6]} 5. Nc3 {[%clk 0:03:01]}
5... d6 {[%clk 0:03:01.2]} 6. Bg5 {[%clk 0:03:00.4]} 6... e6 {[%clk 0:03:01.2]}
7. Qd2 {[%clk 0:03:00.7]} 7... a6 {[%clk 0:03:01.5]} 8. O-O-O {[%clk 0:03:00.5]}
8... Bd7 {[%clk 0:03:01.8]} 9. f4 {[%clk 0:03:00.1]} 9... b5 {[%clk 0:02:59.4]}
10. Kb1 {[%clk 0:02:52.8]} 10... b4 {[%clk 0:02:57.3]} 11. Nxc6 {[%clk
0:02:32.3]} 11... Bxc6 {[%clk 0:02:53.4]} 12. e5 {[%clk 0:02:32.5]} 12... dxe5
{[%clk 0:02:32.9]} 13. Qxd8+ {[%clk 0:02:24.7]} 13... Rxd8 {[%clk 0:02:33.8]}
14. Rxd8+ {[%clk 0:02:24.9]} 14... Kxd8 {[%clk 0:02:34.7]} 15. fxe5 {[%clk
0:02:25.4]} 15... h6 {[%clk 0:02:33.2]} 16. Bd2 {[%clk 0:01:31.9]} 16... bxc3
{[%clk 0:02:30.9]} 17. Bxc3 {[%clk 0:01:24.6]} 17... Ne4 {[%clk 0:02:27.8]} 18.
Ba5+ {[%clk 0:01:24.4]} 18... Kc8 {[%clk 0:02:26.5]} 19. Bxa6+ {[%clk
0:01:25.3]} 19... Bb7 {[%clk 0:02:26.4]} 20. Bb5 {[%clk 0:01:23.1]} 20... Be7
{[%clk 0:01:56]} 21. Rf1 {[%clk 0:01:18.1]} 21... f5 {[%clk 0:01:42.1]} 22. exf6
{[%clk 0:01:15.9]} 22... Nxf6 {[%clk 0:01:40.7]} 23. Bc4 {[%clk 0:01:09.8]}
23... Bd5 {[%clk 0:01:39.4]} 24. Ba6+ {[%clk 0:01:09.9]} 24... Kb8 {[%clk
0:01:34.2]} 25. Re1 {[%clk 0:01:02.7]} 25... Ka7 {[%clk 0:01:30.5]} 26. Bd3
{[%clk 0:01:01.1]} 26... Rb8 {[%clk 0:01:27.8]} 27. c4 {[%clk 0:00:53.8]} 27...
Bxg2 {[%clk 0:01:20.3]} 28. Rxe6 {[%clk 0:00:22.5]} 28... Bb4 {[%clk 0:01:18.2]}
29. Bc7 {[%clk 0:00:19.8]} 29... Rb7 {[%clk 0:01:15.3]} 30. Be5 {[%clk
0:00:17.8]} 30... Nd7 {[%clk 0:01:12.2]} 31. Bxg7 {[%clk 0:00:16.7]} 31... Nc5
{[%clk 0:01:08.6]} 32. Bd4 {[%clk 0:00:16.7]} 32... Rd7 {[%clk 0:01:08.8]} 33.
Bxc5+ {[%clk 0:00:12.9]} 33... Bxc5 {[%clk 0:01:09.7]} 34. Be4 {[%clk
0:00:13.1]} 34... Bxe4+ {[%clk 0:00:49.2]} 35. Rxe4 {[%clk 0:00:14]} 35... Rd2
{[%clk 0:00:49.8]} 36. Rh4 {[%clk 0:00:13.1]} 36... Bd4 {[%clk 0:00:40.5]} 37.
Kc1 {[%clk 0:00:13.3]} 37... Be3 {[%clk 0:00:39.2]} 38. Kb1 {[%clk 0:00:10.4]}
38... Kb6 {[%clk 0:00:36.8]} 39. b4 {[%clk 0:00:09.5]} 39... Bg5 {[%clk
0:00:30.7]} 40. Rh3 {[%clk 0:00:09.1]} 40... Rd4 {[%clk 0:00:26.8]} 41. Rc3
{[%clk 0:00:08.1]} 41... Rd1+ {[%clk 0:00:19.6]} 42. Kc2 {[%clk 0:00:07.3]}
42... Rd2+ {[%clk 0:00:20.3]} 43. Kb3 {[%clk 0:00:07.1]} 43... Rxh2 {[%clk
0:00:20.5]} 44. c5+ {[%clk 0:00:07.6]} 44... Kc6 {[%clk 0:00:20.7]} 45. a4
{[%clk 0:00:07.6]} 45... Bf6 {[%clk 0:00:21.1]} 46. b5+ {[%clk 0:00:07.6]} 46...
Kd5 {[%clk 0:00:21.6]} 47. Rc1 {[%clk 0:00:05.5]} 47... Rb2+ {[%clk 0:00:18.9]}
48. Ka3 {[%clk 0:00:04.8]} 48... Re2 {[%clk 0:00:19.4]} 49. Kb3 {[%clk
0:00:04.2]} 49... Re3+ {[%clk 0:00:18.8]} 50. Kb4 {[%clk 0:00:04.1]} 50... Re4+
{[%clk 0:00:17.2]} 51. Ka5 {[%clk 0:00:04.5]} 51... Re8 {[%clk 0:00:16]} 52. b6
{[%clk 0:00:04.1]} 52... Bd4 {[%clk 0:00:15.1]} 53. Kb5 {[%clk 0:00:04]} 53...
h5 {[%clk 0:00:14]} 54. c6 {[%clk 0:00:04.5]} 54... h4 {[%clk 0:00:14.1]} 55. c7
{[%clk 0:00:04.6]} 55... h3 {[%clk 0:00:14.6]} 56. c8=Q {[%clk 0:00:04.8]} 56...
Rxc8 {[%clk 0:00:14.7]} 57. Rxc8 {[%clk 0:00:05.4]} 57... h2 {[%clk 0:00:15.6]}
58. Rc1 {[%clk 0:00:05.9]} 58... Bg1 {[%clk 0:00:15.6]} 59. b7 {[%clk
0:00:05.7]} 59... h1=Q {[%clk 0:00:12.5]} 60. b8=Q {[%clk 0:00:05.8]} 60... Ke6
{[%clk 0:00:10.1]} 61. Qc8+ {[%clk 0:00:05.5]} 61... Kf6 {[%clk 0:00:10.3]} 62.
Rc6+ {[%clk 0:00:05.4]} 62... Kg5 {[%clk 0:00:09.8]} 63. Qg8+ {[%clk 0:00:05.6]}
63... Kf4 {[%clk 0:00:09.9]} 64. Qf7+ {[%clk 0:00:05.2]} 64... Ke3 {[%clk
0:00:09.6]} 65. Qe6+ {[%clk 0:00:05.2]} 65... Kd3 {[%clk 0:00:07.7]} 66. Rd6+
{[%clk 0:00:04.5]} 66... Bd4 {[%clk 0:00:07.5]} 67. Qc4+ {[%clk 0:00:04.3]}
67... Ke3 {[%clk 0:00:06.6]} 68. Qxd4+ {[%clk 0:00:04.8]} 1-0

[Event "*** Titled Tuesday Blitz"]
[Site "Chess.com"]
[Date "2020.04.28"]
[Round "6"]
[White "Sanan_Sjugirov"]
[Black "stanyga"]
[Result "1-0"]
[WhiteElo "2860"]
[BlackElo "2696"]
[TimeControl "180+1"]
[EndTime "11:08:37 PDT"]
[Termination "Sanan_Sjugirov won on time"]

1. e4 {[%clk 0:03:00.9]} 1... g6 {[%clk 0:02:59.2]} 2. d4 {[%clk 0:03:00.6]}
2... Bg7 {[%clk 0:02:59.3]} 3. Nf3 {[%clk 0:03:01]} 3... d6 {[%clk 0:02:57.4]}
4. c3 {[%clk 0:02:57.2]} 4... Nf6 {[%clk 0:02:55.9]} 5. Bd3 {[%clk 0:02:56.8]}
5... O-O {[%clk 0:02:51.2]} 6. h3 {[%clk 0:02:55.7]} 6... e5 {[%clk 0:02:50.6]}
7. O-O {[%clk 0:02:54.2]} 7... d5 {[%clk 0:02:51]} 8. dxe5 {[%clk 0:02:48.5]}
8... Nxe4 {[%clk 0:02:50]} 9. Nbd2 {[%clk 0:02:43.3]} 9... Nc5 {[%clk
0:02:48.3]} 10. Bc2 {[%clk 0:02:41.5]} 10... Nc6 {[%clk 0:02:47.8]} 11. Re1
{[%clk 0:01:56.2]} 11... Re8 {[%clk 0:02:46.1]} 12. Nb3 {[%clk 0:01:48]} 12...
Nxb3 {[%clk 0:02:20.4]} 13. Bxb3 {[%clk 0:01:48.9]} 13... Nxe5 {[%clk
0:02:20.6]} 14. Nxe5 {[%clk 0:01:23]} 14... Rxe5 {[%clk 0:02:01]} 15. Rxe5
{[%clk 0:01:20.7]} 15... Bxe5 {[%clk 0:02:00.7]} 16. Qxd5 {[%clk 0:01:14.3]}
16... Qxd5 {[%clk 0:01:56.9]} 17. Bxd5 {[%clk 0:01:15.2]} 17... c6 {[%clk
0:01:56.4]} 18. Bb3 {[%clk 0:01:14.8]} 18... Kg7 {[%clk 0:01:26.5]} 19. Be3
{[%clk 0:01:13.5]} 19... h5 {[%clk 0:01:22.2]} 20. Re1 {[%clk 0:01:12.4]} 20...
Bf6 {[%clk 0:01:18.5]} 21. Bd4 {[%clk 0:00:48.3]} 21... Bxd4 {[%clk 0:01:11.8]}
22. cxd4 {[%clk 0:00:49.2]} 22... Be6 {[%clk 0:01:11.6]} 23. Bxe6 {[%clk
0:00:38]} 23... Re8 {[%clk 0:01:10.1]} 24. f4 {[%clk 0:00:30.2]} 24... Kf6
{[%clk 0:01:04]} 25. Kf2 {[%clk 0:00:27.3]} 25... Rxe6 {[%clk 0:01:03.8]} 26.
Rd1 {[%clk 0:00:11.5]} 26... h4 {[%clk 0:00:57.5]} 27. Kf3 {[%clk 0:00:10.7]}
27... Kf5 {[%clk 0:00:56.2]} 28. b4 {[%clk 0:00:09.6]} 28... Re4 {[%clk
0:00:53.9]} 29. d5 {[%clk 0:00:08.5]} 29... Rxf4+ {[%clk 0:00:53.1]} 30. Ke3
{[%clk 0:00:08.9]} 30... Re4+ {[%clk 0:00:50.1]} 31. Kf3 {[%clk 0:00:09]} 31...
Rxb4 {[%clk 0:00:30]} 32. dxc6 {[%clk 0:00:07.5]} 32... bxc6 {[%clk 0:00:29.4]}
33. Rd7 {[%clk 0:00:07.3]} 33... Rf4+ {[%clk 0:00:16.6]} 34. Ke3 {[%clk
0:00:07.8]} 34... Re4+ {[%clk 0:00:16.5]} 35. Kf3 {[%clk 0:00:07.8]} 35... Ra4
{[%clk 0:00:14.7]} 36. Rxf7+ {[%clk 0:00:07.6]} 36... Kg5 {[%clk 0:00:14.8]} 37.
Rc7 {[%clk 0:00:05.1]} 37... Ra3+ {[%clk 0:00:14.8]} 38. Ke4 {[%clk 0:00:05.5]}
38... Ra4+ {[%clk 0:00:09.6]} 39. Kf3 {[%clk 0:00:04.5]} 39... Ra3+ {[%clk
0:00:09.7]} 40. Ke4 {[%clk 0:00:05]} 40... Rxa2 {[%clk 0:00:08.9]} 41. Rxc6
{[%clk 0:00:03.9]} 41... Rxg2 {[%clk 0:00:08.4]} 42. Rc5+ {[%clk 0:00:04]} 42...
Kh6 {[%clk 0:00:08]} 43. Kf4 {[%clk 0:00:03.5]} 43... Rg3 {[%clk 0:00:07]} 44.
Rc6 {[%clk 0:00:03.1]} 44... a5 {[%clk 0:00:05.8]} 45. Ra6 {[%clk 0:00:02.6]}
45... Ra3 {[%clk 0:00:04.9]} 46. Kg4 {[%clk 0:00:02.4]} 46... Ra4+ {[%clk
0:00:05.2]} 47. Kf3 {[%clk 0:00:03.3]} 47... Kh5 {[%clk 0:00:04.8]} 48. Ra8
{[%clk 0:00:03.2]} 48... g5 {[%clk 0:00:04.5]} 49. Ra6 {[%clk 0:00:02.5]} 49...
Ra3+ {[%clk 0:00:03.6]} 50. Kg2 {[%clk 0:00:02.9]} 50... a4 {[%clk 0:00:03]} 51.
Rb6 {[%clk 0:00:02.1]} 51... Rb3 {[%clk 0:00:02.5]} 52. Ra6 {[%clk 0:00:02.5]}
52... Rg3+ {[%clk 0:00:02.4]} 53. Kh2 {[%clk 0:00:03.4]} 53... Ra3 {[%clk
0:00:03.2]} 54. Kg2 {[%clk 0:00:03.3]} 54... Ra2+ {[%clk 0:00:03.5]} 55. Kf3
{[%clk 0:00:03.5]} 55... Ra3+ {[%clk 0:00:03.9]} 56. Kg2 {[%clk 0:00:03.8]}
56... Ra2+ {[%clk 0:00:03.8]} 57. Kg1 {[%clk 0:00:03.7]} 57... Ra1+ {[%clk
0:00:03.6]} 58. Kg2 {[%clk 0:00:04.1]} 58... a3 {[%clk 0:00:04.1]} 59. Kf3
{[%clk 0:00:03.9]} 59... Rh1 {[%clk 0:00:03.3]} 60. Kg2 {[%clk 0:00:03.9]} 60...
Ra1 {[%clk 0:00:03.8]} 61. Kf2 {[%clk 0:00:04.2]} 61... a2 {[%clk 0:00:03]} 62.
Kg2 {[%clk 0:00:04.6]} 62... g4 {[%clk 0:00:03.3]} 63. Ra5+ {[%clk 0:00:04.7]}
63... Kg6 {[%clk 0:00:03.6]} 64. hxg4 {[%clk 0:00:05.6]} 64... h3+ {[%clk
0:00:02.8]} 65. Kh2 {[%clk 0:00:05.6]} 1-0

[Event "*** Titled Tuesday Blitz"]
[Site "Chess.com"]
[Date "2020.04.28"]
[Round "6"]
[White "Jeffinho023"]
[Black "abhidabhi"]
[Result "0-1"]
[WhiteElo "2563"]
[BlackElo "2762"]
[TimeControl "180+1"]
[EndTime "11:08:37 PDT"]
[Termination "abhidabhi won by resignation"]

1. d4 {[%clk 0:03:00.9]} 1... Nf6 {[%clk 0:02:59.7]} 2. Nf3 {[%clk 0:03:00.6]}
2... g6 {[%clk 0:03:00]} 3. Bf4 {[%clk 0:02:58.7]} 3... Bg7 {[%clk 0:03:00]} 4.
e3 {[%clk 0:02:59]} 4... O-O {[%clk 0:03:00.2]} 5. h3 {[%clk 0:02:59.4]} 5... d6
{[%clk 0:02:59.5]} 6. Bh2 {[%clk 0:02:59.8]} 6... Nfd7 {[%clk 0:02:57.4]} 7. Be2
{[%clk 0:02:59.8]} 7... e5 {[%clk 0:02:55.8]} 8. O-O {[%clk 0:03:00.2]} 8... Nc6
{[%clk 0:02:55.8]} 9. a4 {[%clk 0:02:59]} 9... a5 {[%clk 0:02:51.4]} 10. dxe5
{[%clk 0:02:58.2]} 10... Ndxe5 {[%clk 0:02:46.2]} 11. Nxe5 {[%clk 0:02:58]}
11... Nxe5 {[%clk 0:02:43.9]} 12. Nd2 {[%clk 0:02:56.4]} 12... Be6 {[%clk
0:02:29.8]} 13. c3 {[%clk 0:02:53.8]} 13... f5 {[%clk 0:02:23.2]} 14. Nf3 {[%clk
0:02:47.3]} 14... c6 {[%clk 0:02:15.5]} 15. Qc2 {[%clk 0:02:45.1]} 15... Nxf3+
{[%clk 0:02:07.6]} 16. Bxf3 {[%clk 0:02:44.6]} 16... Be5 {[%clk 0:02:07.2]} 17.
Rad1 {[%clk 0:02:39.6]} 17... Qe7 {[%clk 0:02:02.9]} 18. Rd2 {[%clk 0:02:31.9]}
18... g5 {[%clk 0:01:47.8]} 19. Bxe5 {[%clk 0:02:22]} 19... dxe5 {[%clk
0:01:47.5]} 20. g3 {[%clk 0:02:13.4]} 20... f4 {[%clk 0:01:41.6]} 21. Bg2 {[%clk
0:02:07.4]} 21... f3 {[%clk 0:01:28.9]} 22. Bh1 {[%clk 0:02:07.3]} 22... Bxh3
{[%clk 0:01:28.2]} 23. Rfd1 {[%clk 0:02:07.6]} 23... e4 {[%clk 0:00:59.8]} 24.
Rd6 {[%clk 0:02:00.5]} 24... Bf5 {[%clk 0:00:56.6]} 25. Qb3+ {[%clk 0:01:58.9]}
25... Kg7 {[%clk 0:00:52.2]} 26. Qc4 {[%clk 0:01:49]} 26... Qe5 {[%clk
0:00:37.8]} 27. R1d4 {[%clk 0:01:32.2]} 27... Rf7 {[%clk 0:00:34.6]} 28. g4
{[%clk 0:01:23.9]} 28... Bxg4 {[%clk 0:00:26]} 29. Rxe4 {[%clk 0:01:23]} 29...
Qxd6 {[%clk 0:00:25.5]} 30. Rxg4 {[%clk 0:01:23.5]} 30... h6 {[%clk 0:00:21.1]}
31. Rd4 {[%clk 0:01:17]} 31... Qf6 {[%clk 0:00:20.9]} 32. Qd3 {[%clk 0:01:12]}
32... Re8 {[%clk 0:00:18.8]} 33. Rd6 {[%clk 0:01:05.8]} 33... Re6 {[%clk
0:00:18.9]} 34. Rd8 {[%clk 0:01:05.2]} 34... g4 {[%clk 0:00:16.8]} 35. Rd4
{[%clk 0:01:00.7]} 35... h5 {[%clk 0:00:16.3]} 36. Rf4 {[%clk 0:00:54]} 36...
Qe5 {[%clk 0:00:08.9]} 37. Rxf7+ {[%clk 0:00:52]} 37... Kxf7 {[%clk 0:00:09.1]}
38. Qh7+ {[%clk 0:00:52.4]} 38... Qg7 {[%clk 0:00:08.9]} 39. Qxh5+ {[%clk
0:00:51.9]} 39... Qg6 {[%clk 0:00:09.3]} 40. Qxa5 {[%clk 0:00:42.7]} 40... Qb1+
{[%clk 0:00:08.1]} 41. Kh2 {[%clk 0:00:42.3]} 41... Qh7+ {[%clk 0:00:04.5]} 42.
Kg1 {[%clk 0:00:41.2]} 42... Qb1+ {[%clk 0:00:04.7]} 43. Kh2 {[%clk 0:00:40.9]}
43... g3+ {[%clk 0:00:05.3]} 44. Kxg3 {[%clk 0:00:29.2]} 44... Qg1+ {[%clk
0:00:05.4]} 45. Kf4 {[%clk 0:00:25.4]} 45... Qxh1 {[%clk 0:00:02.9]} 46. Qc7+
{[%clk 0:00:20.5]} 46... Re7 {[%clk 0:00:03.3]} 47. Qc8 {[%clk 0:00:18.1]} 47...
Qh4+ {[%clk 0:00:02.9]} 48. Kxf3 {[%clk 0:00:18.1]} 48... Qf6+ {[%clk
0:00:03.2]} 49. Ke2 {[%clk 0:00:18.3]} 49... Qe6 {[%clk 0:00:03.7]} 50. Qh8
{[%clk 0:00:17.8]} 50... Qg4+ {[%clk 0:00:04.1]} 51. Ke1 {[%clk 0:00:16.9]}
51... Qg6 {[%clk 0:00:04.7]} 52. a5 {[%clk 0:00:15.7]} 52... Qb1+ {[%clk
0:00:04.8]} 53. Ke2 {[%clk 0:00:16.1]} 53... Qxb2+ {[%clk 0:00:05.7]} 54. Kf3
{[%clk 0:00:16.5]} 54... Qc2 {[%clk 0:00:05]} 55. Qh5+ {[%clk 0:00:15.1]} 55...
Qg6 {[%clk 0:00:05.2]} 56. Qc5 {[%clk 0:00:15]} 56... Qf6+ {[%clk 0:00:05.5]}
57. Ke2 {[%clk 0:00:15.1]} 57... Qe5 {[%clk 0:00:05.8]} 58. Qc4+ {[%clk
0:00:15.1]} 58... Qd5 {[%clk 0:00:05.7]} 59. Qf4+ {[%clk 0:00:14.3]} 59... Ke6
{[%clk 0:00:06.1]} 60. Qg4+ {[%clk 0:00:14.2]} 60... Kd6 {[%clk 0:00:06.3]} 61.
Qg3+ {[%clk 0:00:14.4]} 61... Kc5 {[%clk 0:00:05.3]} 62. Qh4 {[%clk 0:00:12.3]}
62... Qc4+ {[%clk 0:00:05.5]} 63. Qxc4+ {[%clk 0:00:12.6]} 63... Kxc4 {[%clk
0:00:06.4]} 64. f4 {[%clk 0:00:12.6]} 64... Kxc3 {[%clk 0:00:06.6]} 65. Kf3
{[%clk 0:00:12.3]} 65... Kd3 {[%clk 0:00:07]} 66. f5 {[%clk 0:00:11.8]} 66...
Rxe3+ {[%clk 0:00:07.2]} 67. Kf4 {[%clk 0:00:12.7]} 67... Kd4 {[%clk 0:00:06.8]}
68. a6 {[%clk 0:00:13]} 68... bxa6 {[%clk 0:00:05.5]} 0-1

[Event "*** Titled Tuesday Blitz"]
[Site "Chess.com"]
[Date "2020.04.28"]
[Round "6"]
[White "Morshynska"]
[Black "indfraeng"]
[Result "1/2-1/2"]
[WhiteElo "2089"]
[BlackElo "2269"]
[TimeControl "180+1"]
[EndTime "11:08:37 PDT"]
[Termination "Game drawn - insufficient material"]

1. e4 {[%clk 0:03:00.9]} 1... e5 {[%clk 0:02:59.9]} 2. Nf3 {[%clk 0:03:00]} 2...
Nc6 {[%clk 0:03:00.3]} 3. Bc4 {[%clk 0:02:58.1]} 3... Bc5 {[%clk 0:03:00.2]} 4.
c3 {[%clk 0:02:56.9]} 4... Nf6 {[%clk 0:02:59.4]} 5. d3 {[%clk 0:02:56.9]} 5...
h6 {[%clk 0:02:59.7]} 6. Be3 {[%clk 0:02:54.1]} 6... Bxe3 {[%clk 0:02:56.2]} 7.
fxe3 {[%clk 0:02:55]} 7... d5 {[%clk 0:02:52.6]} 8. exd5 {[%clk 0:02:55.9]} 8...
Nxd5 {[%clk 0:02:53.1]} 9. Qe2 {[%clk 0:02:50.6]} 9... Be6 {[%clk 0:02:50.7]}
10. O-O {[%clk 0:02:45.2]} 10... O-O {[%clk 0:02:50.1]} 11. Nbd2 {[%clk
0:02:42.2]} 11... Qe7 {[%clk 0:02:48.1]} 12. Rae1 {[%clk 0:02:25.2]} 12... f5
{[%clk 0:02:39.2]} 13. Qf2 {[%clk 0:02:07.8]} 13... Nf6 {[%clk 0:02:31.5]} 14.
Qh4 {[%clk 0:01:55.2]} 14... e4 {[%clk 0:02:24.6]} 15. Nd4 {[%clk 0:01:36.4]}
15... Nxd4 {[%clk 0:02:13.4]} 16. exd4 {[%clk 0:01:37.3]} 16... Bxc4 {[%clk
0:02:13.3]} 17. Nxc4 {[%clk 0:01:34.1]} 17... Qd7 {[%clk 0:02:00.5]} 18. Qh3
{[%clk 0:01:14.7]} 18... exd3 {[%clk 0:01:54.1]} 19. Rxf5 {[%clk 0:00:59.7]}
19... Rae8 {[%clk 0:01:39.8]} 20. Ne5 {[%clk 0:00:41.5]} 20... d2 {[%clk
0:01:35.5]} 21. Ref1 {[%clk 0:00:28.5]} 21... Qa4 {[%clk 0:01:29.3]} 22. Qd3
{[%clk 0:00:21.9]} 22... Qxa2 {[%clk 0:01:21.4]} 23. Qxd2 {[%clk 0:00:21.8]}
23... Qe6 {[%clk 0:01:16.6]} 24. h3 {[%clk 0:00:20.5]} 24... Qd6 {[%clk
0:01:07.6]} 25. g4 {[%clk 0:00:16.9]} 25... Ne4 {[%clk 0:01:06.8]} 26. Qg2
{[%clk 0:00:12.1]} 26... Ng5 {[%clk 0:01:01.1]} 27. h4 {[%clk 0:00:11.5]} 27...
Nh7 {[%clk 0:00:55.7]} 28. g5 {[%clk 0:00:11.7]} 28... hxg5 {[%clk 0:00:53.2]}
29. hxg5 {[%clk 0:00:12.6]} 29... g6 {[%clk 0:00:53.6]} 30. Rxf8+ {[%clk
0:00:09.8]} 30... Rxf8 {[%clk 0:00:54.5]} 31. Rxf8+ {[%clk 0:00:09.3]} 31...
Qxf8 {[%clk 0:00:50.8]} 32. Nxg6 {[%clk 0:00:08.4]} 32... Qg7 {[%clk 0:00:48.6]}
33. Ne5 {[%clk 0:00:06.7]} 33... Qxg5 {[%clk 0:00:47.7]} 34. Qxg5+ {[%clk
0:00:06.3]} 34... Nxg5 {[%clk 0:00:48.6]} 35. Kf2 {[%clk 0:00:07.1]} 35... Kf8
{[%clk 0:00:48.5]} 36. Ke3 {[%clk 0:00:07.1]} 36... Ke7 {[%clk 0:00:48.7]} 37.
c4 {[%clk 0:00:06.7]} 37... Kd6 {[%clk 0:00:46.3]} 38. Nd3 {[%clk 0:00:06.3]}
38... b6 {[%clk 0:00:43.4]} 39. b4 {[%clk 0:00:06]} 39... Ne6 {[%clk 0:00:41.7]}
40. b5 {[%clk 0:00:05.9]} 40... Nd8 {[%clk 0:00:38.8]} 41. Nb4 {[%clk
0:00:05.7]} 41... c5 {[%clk 0:00:33.6]} 42. Na6 {[%clk 0:00:05.6]} 42... cxd4+
{[%clk 0:00:31.8]} 43. Kxd4 {[%clk 0:00:06.5]} 43... Ne6+ {[%clk 0:00:32.1]} 44.
Ke4 {[%clk 0:00:05.5]} 44... Ng5+ {[%clk 0:00:18.9]} 45. Kd4 {[%clk 0:00:04.7]}
45... Nf3+ {[%clk 0:00:18.8]} 46. Ke4 {[%clk 0:00:03.7]} 46... Nd2+ {[%clk
0:00:18.7]} 47. Kd4 {[%clk 0:00:03.8]} 47... Nf3+ {[%clk 0:00:18.8]} 48. Ke4
{[%clk 0:00:03.8]} 48... Ng5+ {[%clk 0:00:19.7]} 49. Kd4 {[%clk 0:00:04]} 49...
Nh7 {[%clk 0:00:20.6]} 50. Ke4 {[%clk 0:00:04.1]} 50... Nf6+ {[%clk 0:00:20.6]}
51. Kd4 {[%clk 0:00:05]} 51... Nd7 {[%clk 0:00:20.8]} 52. Kc3 {[%clk 0:00:04.5]}
52... Ke5 {[%clk 0:00:20.6]} 53. Nb4 {[%clk 0:00:05.4]} 53... Kd6 {[%clk
0:00:19.3]} 54. Nc6 {[%clk 0:00:05.7]} 54... Ne5 {[%clk 0:00:17.2]} 55. Nxa7
{[%clk 0:00:04.5]} 55... Kc5 {[%clk 0:00:17.5]} 56. Nc6 {[%clk 0:00:04.4]} 56...
Nxc4 {[%clk 0:00:17.8]} 57. Na7 {[%clk 0:00:03.1]} 57... Nd6 {[%clk 0:00:17.9]}
58. Kb3 {[%clk 0:00:02.6]} 58... Nxb5 {[%clk 0:00:17.5]} 59. Nc8 {[%clk
0:00:02.7]} 59... Nd4+ {[%clk 0:00:16.1]} 60. Kb2 {[%clk 0:00:03]} 60... b5
{[%clk 0:00:16]} 61. Na7 {[%clk 0:00:03.1]} 61... b4 {[%clk 0:00:15.4]} 62. Nc8
{[%clk 0:00:03.7]} 62... Nf5 {[%clk 0:00:14]} 63. Na7 {[%clk 0:00:03.4]} 63...
Nd4 {[%clk 0:00:10.8]} 64. Nc8 {[%clk 0:00:03.1]} 64... Kc4 {[%clk 0:00:09.8]}
65. Nd6+ {[%clk 0:00:02.6]} 65... Kd5 {[%clk 0:00:10.1]} 66. Nb7 {[%clk
0:00:02.5]} 66... Kc6 {[%clk 0:00:08.2]} 67. Na5+ {[%clk 0:00:02.5]} 67... Kb5
{[%clk 0:00:08.4]} 68. Nb3 {[%clk 0:00:02.5]} 68... Nc6 {[%clk 0:00:08.6]} 69.
Nc1 {[%clk 0:00:02.3]} 69... Kc4 {[%clk 0:00:08.8]} 70. Na2 {[%clk 0:00:02.2]}
70... b3 {[%clk 0:00:07.1]} 71. Nc1 {[%clk 0:00:02.3]} 71... Nd4 {[%clk
0:00:08]} 72. Nxb3 {[%clk 0:00:03.2]} 1/2-1/2